[Event "*** Titled Tuesday Blitz"]
[Site "Chess.com"]
[Date "2021.03.02"]
[Round "2"]
[White "KarateBaby"]
[Black "ZEN-22"]
[Result "0-1"]
[WhiteElo "2206"]
[BlackElo "2428"]
[TimeControl "180+1"]
[EndTime "10:17:14 PST"]
[Termination "ZEN-22 won by resignation"]

1. Nf3 {[%clk 0:03:00.9]} 1... f5 {[%clk 0:02:55.9]} 2. d3 {[%clk 0:02:59.4]}
2... Nf6 {[%clk 0:02:28]} 3. e4 {[%clk 0:02:58.8]} 3... fxe4 {[%clk 0:02:27.3]}
4. dxe4 {[%clk 0:02:59.7]} 4... Nxe4 {[%clk 0:02:25.4]} 5. Bd3 {[%clk
0:02:58.9]} 5... Nf6 {[%clk 0:02:25.3]} 6. Ng5 {[%clk 0:02:58.9]} 6... g6 {[%clk
0:02:18.5]} 7. Nxh7 {[%clk 0:02:57.1]} 7... Rxh7 {[%clk 0:02:18]} 8. Bxg6+
{[%clk 0:02:57.3]} 8... Rf7 {[%clk 0:02:18.6]} 9. Bg5 {[%clk 0:02:36.9]} 9... d5
{[%clk 0:02:17.2]} 10. Bxf6 {[%clk 0:02:31.9]} 10... exf6 {[%clk 0:02:16.7]} 11.
O-O {[%clk 0:02:32.8]} 11... Bg7 {[%clk 0:01:57.9]} 12. Qh5 {[%clk 0:02:21.1]}
12... Qd7 {[%clk 0:01:40]} 13. Nc3 {[%clk 0:02:15]} 13... Nc6 {[%clk 0:01:31.6]}
14. Rad1 {[%clk 0:02:01.4]} 14... d4 {[%clk 0:01:22.2]} 15. Qh7 {[%clk
0:01:48.7]} 15... Kf8 {[%clk 0:01:20.4]} 16. Bxf7 {[%clk 0:01:46.4]} 16... Qxf7
{[%clk 0:01:19.3]} 17. Nb5 {[%clk 0:01:46.4]} 17... f5 {[%clk 0:00:47.8]} 18.
Rfe1 {[%clk 0:01:23.4]} 18... a6 {[%clk 0:00:40.8]} 19. Na3 {[%clk 0:01:09.3]}
19... Be6 {[%clk 0:00:32.2]} 20. Qh4 {[%clk 0:00:47.9]} 20... Bf6 {[%clk
0:00:25.4]} 21. Qf4 {[%clk 0:00:46]} 21... Rd8 {[%clk 0:00:22.7]} 22. c3 {[%clk
0:00:34.5]} 22... dxc3 {[%clk 0:00:18.7]} 23. Rxd8+ {[%clk 0:00:35.4]} 23...
Nxd8 {[%clk 0:00:18]} 24. bxc3 {[%clk 0:00:36.3]} 24... Bxc3 {[%clk 0:00:16.5]}
25. Rc1 {[%clk 0:00:36.6]} 25... Qg7 {[%clk 0:00:11.4]} 26. Nb1 {[%clk
0:00:33.4]} 26... Be5 {[%clk 0:00:10]} 27. Qd2 {[%clk 0:00:31.1]} 27... Nf7
{[%clk 0:00:07.5]} 28. Qb4+ {[%clk 0:00:29.2]} 28... Nd6 {[%clk 0:00:02.3]} 29.
Qxb7 {[%clk 0:00:30.1]} 29... Nxb7 {[%clk 0:00:02.1]} 0-1

[Event "*** Titled Tuesday Blitz"]
[Site "Chess.com"]
[Date "2021.03.02"]
[Round "2"]
[White "ARTHURMOTIVATOR"]
[Black "Airquake"]
[Result "0-1"]
[WhiteElo "2336"]
[BlackElo "2670"]
[TimeControl "180+1"]
[EndTime "10:17:15 PST"]
[Termination "Airquake won by resignation"]

1. e4 {[%clk 0:03:00.9]} 1... c5 {[%clk 0:02:57.6]} 2. Nf3 {[%clk 0:02:57.4]}
2... d6 {[%clk 0:02:58.5]} 3. d4 {[%clk 0:02:57.4]} 3... cxd4 {[%clk 0:02:59.4]}
4. Nxd4 {[%clk 0:02:58]} 4... Nf6 {[%clk 0:03:00]} 5. Nc3 {[%clk 0:02:57.1]}
5... a6 {[%clk 0:03:00.3]} 6. h3 {[%clk 0:02:54.4]} 6... e6 {[%clk 0:03:00.2]}
7. g4 {[%clk 0:02:52.9]} 7... Qc7 {[%clk 0:03:00.3]} 8. Bg2 {[%clk 0:02:52.9]}
8... Nc6 {[%clk 0:02:59.6]} 9. O-O {[%clk 0:02:52.1]} 9... Be7 {[%clk
0:02:59.3]} 10. Kh1 {[%clk 0:02:38.3]} 10... O-O {[%clk 0:02:58.3]} 11. g5
{[%clk 0:02:38.1]} 11... Nd7 {[%clk 0:02:57.9]} 12. f4 {[%clk 0:02:38]} 12...
Nxd4 {[%clk 0:02:51.4]} 13. Qxd4 {[%clk 0:02:36.1]} 13... b5 {[%clk 0:02:50.2]}
14. f5 {[%clk 0:02:14.1]} 14... Bb7 {[%clk 0:02:50.1]} 15. f6 {[%clk 0:02:10]}
15... gxf6 {[%clk 0:02:50]} 16. gxf6 {[%clk 0:02:08.2]} 16... e5 {[%clk
0:02:50.5]} 17. Qg1 {[%clk 0:01:54.8]} 17... Bxf6 {[%clk 0:02:37.8]} 18. Bh6
{[%clk 0:01:52]} 18... Kh8 {[%clk 0:02:37.8]} 19. Bxf8 {[%clk 0:01:41.4]} 19...
Rxf8 {[%clk 0:02:38.7]} 20. Nd5 {[%clk 0:01:36.4]} 20... Bxd5 {[%clk 0:02:38.3]}
21. exd5 {[%clk 0:01:37.3]} 21... Rg8 {[%clk 0:02:38.1]} 22. Qf2 {[%clk
0:01:33.8]} 22... Rg7 {[%clk 0:01:56.7]} 23. Rae1 {[%clk 0:01:29.9]} 23... Bg5
{[%clk 0:01:39.4]} 24. Re4 {[%clk 0:01:20.8]} 24... Nf6 {[%clk 0:01:25.4]} 25.
Re2 {[%clk 0:00:55.5]} 25... Nh5 {[%clk 0:01:08.7]} 26. Re4 {[%clk 0:00:41.9]}
26... Bf4 {[%clk 0:01:07.5]} 27. Rfe1 {[%clk 0:00:25.4]} 27... Ng3+ {[%clk
0:01:01.6]} 28. Kg1 {[%clk 0:00:22.5]} 28... Nxe4 {[%clk 0:00:59.2]} 29. Rxe4
{[%clk 0:00:23.2]} 29... f5 {[%clk 0:00:58.9]} 30. Rxf4 {[%clk 0:00:19.8]} 30...
exf4 {[%clk 0:00:58.9]} 31. Qxf4 {[%clk 0:00:18.6]} 31... Qxc2 {[%clk
0:00:59.2]} 32. Qf3 {[%clk 0:00:17.7]} 32... Qe4 {[%clk 0:00:59.1]} 33. Qf2
{[%clk 0:00:15.6]} 33... Qxd5 {[%clk 0:00:58.9]} 34. Kh1 {[%clk 0:00:14.3]}
34... Qe5 {[%clk 0:00:57.1]} 35. Qc2 {[%clk 0:00:12.5]} 35... Qe1+ {[%clk
0:00:52]} 36. Kh2 {[%clk 0:00:11.8]} 36... Qg3+ {[%clk 0:00:52.6]} 37. Kh1
{[%clk 0:00:12.1]} 37... Qxg2+ {[%clk 0:00:53.5]} 38. Qxg2 {[%clk 0:00:09.1]}
38... Rxg2 {[%clk 0:00:54.4]} 39. Kxg2 {[%clk 0:00:09.7]} 39... Kg7 {[%clk
0:00:55]} 40. Kf3 {[%clk 0:00:10.6]} 40... Kf6 {[%clk 0:00:55.4]} 41. Kf4 {[%clk
0:00:11.5]} 41... d5 {[%clk 0:00:55.7]} 0-1

[Event "*** Titled Tuesday Blitz"]
[Site "Chess.com"]
[Date "2021.03.02"]
[Round "2"]
[White "Mazanchenko_Dmitry"]
[Black "ajdemipopushi"]
[Result "1-0"]
[WhiteElo "2095"]
[BlackElo "2370"]
[TimeControl "180+1"]
[EndTime "10:17:15 PST"]
[Termination "Mazanchenko_Dmitry won on time"]

1. e4 {[%clk 0:03:00.9]} 1... c5 {[%clk 0:02:59.4]} 2. Ne2 {[%clk 0:03:00.1]}
2... g6 {[%clk 0:02:59.6]} 3. d4 {[%clk 0:02:57.2]} 3... cxd4 {[%clk 0:02:59.7]}
4. Qxd4 {[%clk 0:02:53.5]} 4... Nf6 {[%clk 0:02:59.3]} 5. e5 {[%clk 0:02:53.2]}
5... Nc6 {[%clk 0:02:59]} 6. Qc3 {[%clk 0:02:53.1]} 6... Ne4 {[%clk 0:02:52.4]}
7. Qf3 {[%clk 0:02:41.6]} 7... Qa5+ {[%clk 0:02:45.5]} 8. Nbc3 {[%clk
0:02:26.3]} 8... Nxc3 {[%clk 0:02:44.4]} 9. Nxc3 {[%clk 0:02:27.2]} 9... Qxe5+
{[%clk 0:02:43.7]} 10. Be2 {[%clk 0:02:22.1]} 10... Bg7 {[%clk 0:02:39.6]} 11.
O-O {[%clk 0:02:16.9]} 11... O-O {[%clk 0:02:39.1]} 12. Bf4 {[%clk 0:02:16.3]}
12... Qa5 {[%clk 0:02:35.6]} 13. Nd5 {[%clk 0:02:10]} 13... d6 {[%clk
0:02:30.7]} 14. Bg5 {[%clk 0:02:04.3]} 14... Re8 {[%clk 0:02:13.5]} 15. Bb5
{[%clk 0:01:55.3]} 15... Qxb5 {[%clk 0:01:20.4]} 16. Nc7 {[%clk 0:01:55.2]}
16... Qxg5 {[%clk 0:01:19.9]} 17. Nxe8 {[%clk 0:01:55.6]} 17... Bxb2 {[%clk
0:01:02.4]} 18. Rab1 {[%clk 0:01:38.7]} 18... Be5 {[%clk 0:00:57.7]} 19. Nc7
{[%clk 0:01:34.6]} 19... Rb8 {[%clk 0:00:54.8]} 20. Qa3 {[%clk 0:01:10.2]} 20...
Bd7 {[%clk 0:00:25.8]} 21. g3 {[%clk 0:01:05.6]} 21... Qh5 {[%clk 0:00:19.8]}
22. Nd5 {[%clk 0:00:54.7]} 22... Be6 {[%clk 0:00:18.5]} 23. Ne3 {[%clk
0:00:49.2]} 23... Nd4 {[%clk 0:00:15.7]} 24. f4 {[%clk 0:00:45.3]} 24... Bf6
{[%clk 0:00:13.3]} 25. Qxa7 {[%clk 0:00:43.4]} 25... Rc8 {[%clk 0:00:10.6]} 26.
Qxb7 {[%clk 0:00:33.1]} 26... Nf3+ {[%clk 0:00:01.5]} 27. Qxf3 {[%clk
0:00:31.5]} 1-0

[Event "*** Titled Tuesday Blitz"]
[Site "Chess.com"]
[Date "2021.03.02"]
[Round "2"]
[White "niki_2003"]
[Black "oogee"]
[Result "0-1"]
[WhiteElo "2007"]
[BlackElo "2369"]
[TimeControl "180+1"]
[EndTime "10:17:15 PST"]
[Termination "oogee won by checkmate"]

1. e4 {[%clk 0:03:00.9]} 1... c5 {[%clk 0:02:39.6]} 2. Nf3 {[%clk 0:02:57.9]}
2... d6 {[%clk 0:02:38.1]} 3. d4 {[%clk 0:02:57.1]} 3... cxd4 {[%clk 0:02:38.4]}
4. Nxd4 {[%clk 0:02:55.3]} 4... Nf6 {[%clk 0:02:38.7]} 5. Nc3 {[%clk 0:02:48.8]}
5... g6 {[%clk 0:02:39]} 6. Be3 {[%clk 0:02:45.7]} 6... Bg7 {[%clk 0:02:38.2]}
7. f3 {[%clk 0:02:44.7]} 7... Nc6 {[%clk 0:02:38.2]} 8. Qd2 {[%clk 0:02:44]}
8... O-O {[%clk 0:02:37.4]} 9. O-O-O {[%clk 0:02:43.2]} 9... d5 {[%clk
0:02:36.6]} 10. Nxc6 {[%clk 0:02:36.5]} 10... bxc6 {[%clk 0:02:35.8]} 11. Qe1
{[%clk 0:02:29.8]} 11... e5 {[%clk 0:02:19]} 12. Bg5 {[%clk 0:02:28.4]} 12... d4
{[%clk 0:02:10.6]} 13. h4 {[%clk 0:01:47.1]} 13... Be6 {[%clk 0:01:53.9]} 14. a3
{[%clk 0:01:37.3]} 14... Rb8 {[%clk 0:01:32.1]} 15. g4 {[%clk 0:01:22.8]} 15...
Qa5 {[%clk 0:01:08.2]} 16. Nd5 {[%clk 0:00:40.6]} 16... Qxe1 {[%clk 0:01:05.7]}
17. Nxf6+ {[%clk 0:00:38.7]} 17... Bxf6 {[%clk 0:01:05.1]} 18. Rxe1 {[%clk
0:00:39]} 18... Bxg5+ {[%clk 0:00:53.5]} 19. hxg5 {[%clk 0:00:39.9]} 19... f6
{[%clk 0:00:53.9]} 20. gxf6 {[%clk 0:00:39.5]} 20... Rxf6 {[%clk 0:00:53.2]} 21.
b3 {[%clk 0:00:39.6]} 21... Rxf3 {[%clk 0:00:51.3]} 22. Be2 {[%clk 0:00:39.2]}
22... Re3 {[%clk 0:00:49.5]} 23. Rh2 {[%clk 0:00:34.3]} 23... Bxg4 {[%clk
0:00:47.8]} 24. Bc4+ {[%clk 0:00:30.2]} 24... Kg7 {[%clk 0:00:47.4]} 25. Reh1
{[%clk 0:00:29.5]} 25... h5 {[%clk 0:00:46.3]} 26. Rg2 {[%clk 0:00:26.1]} 26...
Bf3 {[%clk 0:00:44.8]} 27. Rgg1 {[%clk 0:00:25.3]} 27... Bxh1 {[%clk 0:00:44.7]}
28. Rxh1 {[%clk 0:00:26.2]} 28... Rxe4 {[%clk 0:00:45.2]} 29. Bd3 {[%clk
0:00:25.8]} 29... Re3 {[%clk 0:00:45.5]} 30. Rg1 {[%clk 0:00:25.6]} 30... e4
{[%clk 0:00:46]} 31. Bc4 {[%clk 0:00:24.7]} 31... h4 {[%clk 0:00:46.2]} 32. Rg4
{[%clk 0:00:23.8]} 32... h3 {[%clk 0:00:45.8]} 33. Rh4 {[%clk 0:00:24.2]} 33...
Rh8 {[%clk 0:00:45.8]} 34. Rg4 {[%clk 0:00:23.4]} 34... h2 {[%clk 0:00:45.6]}
35. Kb2 {[%clk 0:00:24]} 35... h1=Q {[%clk 0:00:45.4]} 36. Rf4 {[%clk
0:00:23.2]} 36... Qe1 {[%clk 0:00:44.9]} 37. Rf7+ {[%clk 0:00:22.8]} 37... Kh6
{[%clk 0:00:45.8]} 38. Rf3 {[%clk 0:00:22.7]} 38... Qc3+ {[%clk 0:00:45.4]} 39.
Kb1 {[%clk 0:00:22.1]} 39... exf3 {[%clk 0:00:45.7]} 40. Ka2 {[%clk 0:00:20.5]}
40... Re1 {[%clk 0:00:45.7]} 41. b4 {[%clk 0:00:18.3]} 41... Ra1# {[%clk
0:00:46.6]} 0-1

[Event "*** Titled Tuesday Blitz"]
[Site "Chess.com"]
[Date "2021.03.02"]
[Round "2"]
[White "Duhless"]
[Black "hermionegrangermagic"]
[Result "1-0"]
[WhiteElo "3078"]
[BlackElo "2599"]
[TimeControl "180+1"]
[EndTime "10:17:16 PST"]
[Termination "Duhless won by resignation"]

1. d4 {[%clk 0:03:00.9]} 1... d5 {[%clk 0:02:59.5]} 2. Nf3 {[%clk 0:03:01.3]}
2... Nf6 {[%clk 0:02:59]} 3. c4 {[%clk 0:03:01.7]} 3... e6 {[%clk 0:02:58.6]} 4.
g3 {[%clk 0:02:59.9]} 4... Be7 {[%clk 0:02:58.6]} 5. Bg2 {[%clk 0:02:59.6]} 5...
O-O {[%clk 0:02:58.5]} 6. Qc2 {[%clk 0:02:59.7]} 6... dxc4 {[%clk 0:02:57.9]} 7.
Qxc4 {[%clk 0:02:58.6]} 7... a6 {[%clk 0:02:57.7]} 8. Qc2 {[%clk 0:02:57.1]}
8... Nbd7 {[%clk 0:02:53.4]} 9. O-O {[%clk 0:02:56]} 9... c5 {[%clk 0:02:53.3]}
10. Rd1 {[%clk 0:02:54.6]} 10... cxd4 {[%clk 0:02:45.1]} 11. Nxd4 {[%clk
0:02:55.5]} 11... Qb6 {[%clk 0:02:33.6]} 12. Na3 {[%clk 0:02:45]} 12... Bc5
{[%clk 0:02:03.9]} 13. Nc4 {[%clk 0:02:40]} 13... Qa7 {[%clk 0:02:04.3]} 14. Be3
{[%clk 0:02:33.5]} 14... Ng4 {[%clk 0:01:56.4]} 15. Rac1 {[%clk 0:02:18.6]}
15... Nxe3 {[%clk 0:01:55.1]} 16. fxe3 {[%clk 0:02:19.5]} 16... Nf6 {[%clk
0:01:35.9]} 17. Na5 {[%clk 0:01:55.8]} 17... Bb6 {[%clk 0:01:20.5]} 18. Nc4
{[%clk 0:01:55.1]} 18... Bc5 {[%clk 0:01:20.6]} 19. a3 {[%clk 0:01:53]} 19...
Rd8 {[%clk 0:01:09.8]} 20. b4 {[%clk 0:01:38.5]} 20... Bxd4 {[%clk 0:01:04.8]}
21. exd4 {[%clk 0:01:39.4]} 21... Rxd4 {[%clk 0:00:57.6]} 22. Rxd4 {[%clk
0:01:36.4]} 22... Qxd4+ {[%clk 0:00:58.5]} 23. e3 {[%clk 0:01:37]} 23... Qd8
{[%clk 0:00:54]} 24. Ne5 {[%clk 0:01:32.1]} 24... Rb8 {[%clk 0:00:45.5]} 25. Qc7
{[%clk 0:01:27.7]} 25... Qxc7 {[%clk 0:00:45.4]} 26. Rxc7 {[%clk 0:01:27.1]}
26... Nd5 {[%clk 0:00:33.9]} 27. Rxf7 {[%clk 0:01:14.5]} 27... Nxe3 {[%clk
0:00:29.8]} 28. Be4 {[%clk 0:01:06.5]} 28... Nc4 {[%clk 0:00:22.6]} 29. Bxh7+
{[%clk 0:01:04.3]} 29... Kxh7 {[%clk 0:00:22.1]} 30. Nxc4 {[%clk 0:01:05.2]}
30... e5 {[%clk 0:00:15.9]} 31. Rf8 {[%clk 0:01:03.3]} 31... Be6 {[%clk
0:00:11.6]} 32. Rxb8 {[%clk 0:01:01.8]} 32... Bxc4 {[%clk 0:00:11.7]} 33. Rxb7
{[%clk 0:01:01.4]} 33... Kg6 {[%clk 0:00:12.1]} 34. Rc7 {[%clk 0:01:00.5]} 34...
Bb5 {[%clk 0:00:11.8]} 35. Kf2 {[%clk 0:01:01.4]} 35... Kf6 {[%clk 0:00:11.5]}
36. Ke3 {[%clk 0:01:01.7]} 36... Ke6 {[%clk 0:00:11.8]} 37. Rxg7 {[%clk
0:01:00.7]} 37... Kd5 {[%clk 0:00:11.7]} 38. Rc7 {[%clk 0:01:00.3]} 38... Bc6
{[%clk 0:00:09.7]} 39. h4 {[%clk 0:00:58.5]} 39... Be8 {[%clk 0:00:09.7]} 40.
Rc5+ {[%clk 0:00:57.4]} 40... Ke6 {[%clk 0:00:09.5]} 41. g4 {[%clk 0:00:58.3]}
41... Kf6 {[%clk 0:00:09.4]} 42. Ra5 {[%clk 0:00:55.9]} 42... Ke6 {[%clk
0:00:09.4]} 43. Rxa6+ {[%clk 0:00:55.2]} 43... Kd5 {[%clk 0:00:09.3]} 44. Ra5+
{[%clk 0:00:56.1]} 44... Kc4 {[%clk 0:00:09.5]} 45. Rxe5 {[%clk 0:00:56.1]} 1-0

[Event "*** Titled Tuesday Blitz"]
[Site "Chess.com"]
[Date "2021.03.02"]
[Round "2"]
[White "Mihnea2017"]
[Black "Pantata007"]
[Result "1-0"]
[WhiteElo "2452"]
[BlackElo "2241"]
[TimeControl "180+1"]
[EndTime "10:17:16 PST"]
[Termination "Mihnea2017 won by checkmate"]

1. e4 {[%clk 0:03:00.9]} 1... e5 {[%clk 0:02:59.6]} 2. Nf3 {[%clk 0:03:00.7]}
2... Nc6 {[%clk 0:02:59.6]} 3. Bc4 {[%clk 0:03:00.9]} 3... Bc5 {[%clk
0:02:59.2]} 4. O-O {[%clk 0:03:00.3]} 4... Nf6 {[%clk 0:02:59]} 5. d3 {[%clk
0:03:00.6]} 5... d6 {[%clk 0:02:57]} 6. c3 {[%clk 0:03:00.6]} 6... O-O {[%clk
0:02:56.4]} 7. Nbd2 {[%clk 0:02:58.7]} 7... a5 {[%clk 0:02:55.8]} 8. a4 {[%clk
0:02:57.7]} 8... Be6 {[%clk 0:02:54.2]} 9. h3 {[%clk 0:02:54.2]} 9... Bxc4
{[%clk 0:02:49.9]} 10. Nxc4 {[%clk 0:02:53.9]} 10... h6 {[%clk 0:02:42.9]} 11.
Be3 {[%clk 0:02:53.8]} 11... Bxe3 {[%clk 0:02:40.8]} 12. Nxe3 {[%clk 0:02:49.4]}
12... d5 {[%clk 0:02:39.5]} 13. exd5 {[%clk 0:02:23.2]} 13... Nxd5 {[%clk
0:02:40.4]} 14. Nc4 {[%clk 0:02:23.8]} 14... Re8 {[%clk 0:02:31.6]} 15. Re1
{[%clk 0:02:23.6]} 15... Qf6 {[%clk 0:02:31.8]} 16. Qb3 {[%clk 0:02:09.2]} 16...
Nf4 {[%clk 0:02:31.1]} 17. Qxb7 {[%clk 0:01:47.3]} 17... Nxh3+ {[%clk
0:02:28.3]} 18. Kf1 {[%clk 0:01:39.5]} 18... Nf4 {[%clk 0:02:28.3]} 19. Re3
{[%clk 0:01:28.2]} 19... Nxd3 {[%clk 0:02:08.8]} 20. Rxd3 {[%clk 0:01:25.4]}
20... e4 {[%clk 0:02:08.6]} 21. Re3 {[%clk 0:01:23.7]} 21... exf3 {[%clk
0:02:06.8]} 22. Rxf3 {[%clk 0:01:23.9]} 22... Qe6 {[%clk 0:01:55.3]} 23. Ne3
{[%clk 0:01:16.3]} 23... Ne5 {[%clk 0:01:44.9]} 24. Rg3 {[%clk 0:01:08.5]} 24...
Rab8 {[%clk 0:01:32.8]} 25. Qxc7 {[%clk 0:01:04.5]} 25... Rxb2 {[%clk
0:01:32.9]} 26. Rd1 {[%clk 0:00:37.1]} 26... Qa2 {[%clk 0:01:19.1]} 27. Kg1
{[%clk 0:00:20.9]} 27... Rxf2 {[%clk 0:00:49.5]} 28. Rd8 {[%clk 0:00:20.4]}
28... Rxd8 {[%clk 0:00:41.6]} 29. Qxd8+ {[%clk 0:00:21.3]} 29... Kh7 {[%clk
0:00:42.2]} 30. Nd5 {[%clk 0:00:21.8]} 30... Rd2 {[%clk 0:00:34.6]} 31. Nf6+
{[%clk 0:00:20]} 31... gxf6 {[%clk 0:00:19.4]} 32. Qg8# {[%clk 0:00:20.9]} 1-0

[Event "*** Titled Tuesday Blitz"]
[Site "Chess.com"]
[Date "2021.03.02"]
[Round "2"]
[White "K_A_S_T_O_R"]
[Black "dragos420"]
[Result "1-0"]
[WhiteElo "2795"]
[BlackElo "2523"]
[TimeControl "180+1"]
[EndTime "10:17:18 PST"]
[Termination "K_A_S_T_O_R won by resignation"]

1. e4 {[%clk 0:02:49.2]} 1... e5 {[%clk 0:03:00]} 2. Nf3 {[%clk 0:02:48.4]} 2...
Nc6 {[%clk 0:03:00.4]} 3. Bc4 {[%clk 0:02:48]} 3... Nf6 {[%clk 0:03:00.3]} 4.
Ng5 {[%clk 0:02:48.1]} 4... d5 {[%clk 0:03:00.3]} 5. exd5 {[%clk 0:02:48.6]}
5... Na5 {[%clk 0:03:00.9]} 6. Bb5+ {[%clk 0:02:48.1]} 6... c6 {[%clk
0:03:01.4]} 7. dxc6 {[%clk 0:02:48.7]} 7... bxc6 {[%clk 0:03:02.3]} 8. Bd3
{[%clk 0:02:49.1]} 8... h6 {[%clk 0:02:53]} 9. Ne4 {[%clk 0:02:48.1]} 9... Nd5
{[%clk 0:02:51.4]} 10. O-O {[%clk 0:02:45.3]} 10... Nf4 {[%clk 0:02:42.2]} 11.
Be2 {[%clk 0:02:41.3]} 11... f5 {[%clk 0:02:36.6]} 12. Ng3 {[%clk 0:02:37.6]}
12... g6 {[%clk 0:02:27.4]} 13. d4 {[%clk 0:02:30.6]} 13... Nxe2+ {[%clk
0:02:11.6]} 14. Qxe2 {[%clk 0:02:18]} 14... e4 {[%clk 0:02:10.3]} 15. Rd1 {[%clk
0:02:09.3]} 15... Bg7 {[%clk 0:02:08.7]} 16. f3 {[%clk 0:02:06.6]} 16... O-O
{[%clk 0:02:04.5]} 17. fxe4 {[%clk 0:02:01.8]} 17... fxe4 {[%clk 0:02:05.4]} 18.
Be3 {[%clk 0:01:57.7]} 18... Qh4 {[%clk 0:01:59.3]} 19. Nc3 {[%clk 0:01:47.5]}
19... Bg4 {[%clk 0:01:46.4]} 20. Qa6 {[%clk 0:01:47]} 20... Bxd1 {[%clk
0:01:29.5]} 21. Rxd1 {[%clk 0:01:47.1]} 21... Qd8 {[%clk 0:01:23.3]} 22. b4
{[%clk 0:01:45.3]} 22... c5 {[%clk 0:00:45]} 23. dxc5 {[%clk 0:01:26.2]} 23...
Qc8 {[%clk 0:00:44.2]} 24. Qxg6 {[%clk 0:01:14.8]} 24... Qc6 {[%clk 0:00:37.1]}
25. Rd6 {[%clk 0:01:06.9]} 25... Qe8 {[%clk 0:00:31.5]} 26. Bxh6 {[%clk
0:01:00.1]} 26... Qxg6 {[%clk 0:00:27.5]} 27. Rxg6 {[%clk 0:00:59.9]} 27... Kh7
{[%clk 0:00:21.3]} 28. Bxg7 {[%clk 0:00:46.4]} 28... Kxg6 {[%clk 0:00:11.2]} 29.
Bxf8 {[%clk 0:00:46.5]} 29... Nc6 {[%clk 0:00:10.6]} 30. b5 {[%clk 0:00:43.1]}
30... Rxf8 {[%clk 0:00:05]} 31. bxc6 {[%clk 0:00:42.6]} 31... Rc8 {[%clk
0:00:05.6]} 32. Ngxe4 {[%clk 0:00:41.9]} 32... Rxc6 {[%clk 0:00:06.5]} 33. g4
{[%clk 0:00:37.7]} 1-0

[Event "*** Titled Tuesday Blitz"]
[Site "Chess.com"]
[Date "2021.03.02"]
[Round "2"]
[White "Loy_Konstantin"]
[Black "superchess02"]
[Result "0-1"]
[WhiteElo "2346"]
[BlackElo "2791"]
[TimeControl "180+1"]
[EndTime "10:17:18 PST"]
[Termination "superchess02 won by resignation"]

1. e4 {[%clk 0:02:39.4]} 1... e5 {[%clk 0:02:59.3]} 2. Nf3 {[%clk 0:02:37.3]}
2... Nc6 {[%clk 0:02:59.2]} 3. d4 {[%clk 0:02:37.3]} 3... exd4 {[%clk
0:02:57.9]} 4. Nxd4 {[%clk 0:02:38.2]} 4... Nf6 {[%clk 0:02:57.1]} 5. Nxc6
{[%clk 0:02:37.7]} 5... bxc6 {[%clk 0:02:58]} 6. Bd3 {[%clk 0:02:38.2]} 6... d6
{[%clk 0:02:46.6]} 7. O-O {[%clk 0:02:36]} 7... Be7 {[%clk 0:02:47.2]} 8. Nc3
{[%clk 0:02:32.3]} 8... O-O {[%clk 0:02:47.5]} 9. f4 {[%clk 0:02:32.5]} 9... Rb8
{[%clk 0:02:45.7]} 10. b3 {[%clk 0:02:29.9]} 10... d5 {[%clk 0:02:37]} 11. e5
{[%clk 0:02:16.9]} 11... Ng4 {[%clk 0:02:36.9]} 12. Qe2 {[%clk 0:02:09.1]} 12...
Bc5+ {[%clk 0:02:35.2]} 13. Kh1 {[%clk 0:02:05.5]} 13... Bd4 {[%clk 0:01:49.6]}
14. Bd2 {[%clk 0:01:58.6]} 14... Qh4 {[%clk 0:01:44.3]} 15. g3 {[%clk
0:01:26.7]} 15... Qh3 {[%clk 0:01:43.8]} 16. Qg2 {[%clk 0:01:17.6]} 16... Qxg2+
{[%clk 0:01:35.3]} 17. Kxg2 {[%clk 0:01:17.9]} 17... Bxc3 {[%clk 0:01:36.2]} 18.
Bxc3 {[%clk 0:01:16.9]} 18... Ne3+ {[%clk 0:01:36.8]} 19. Kf3 {[%clk 0:01:14.6]}
19... Nxf1 {[%clk 0:01:37.7]} 20. Rxf1 {[%clk 0:01:14.9]} 20... c5 {[%clk
0:01:38.6]} 21. Ba5 {[%clk 0:01:05.1]} 21... c4 {[%clk 0:01:02.5]} 22. bxc4
{[%clk 0:00:49.3]} 22... dxc4 {[%clk 0:01:03.4]} 23. Bxc4 {[%clk 0:00:48.8]}
23... Bb7+ {[%clk 0:00:59]} 24. Ke3 {[%clk 0:00:47]} 24... Rbc8 {[%clk
0:00:53.9]} 25. Rd1 {[%clk 0:00:47.2]} 25... Rfd8 {[%clk 0:00:53.5]} 26. Rb1
{[%clk 0:00:32.2]} 26... Bd5 {[%clk 0:00:53.3]} 27. Bb3 {[%clk 0:00:26.1]} 27...
g6 {[%clk 0:00:42.4]} 28. Bc3 {[%clk 0:00:20.4]} 28... Rb8 {[%clk 0:00:39.7]}
29. Bd4 {[%clk 0:00:17.5]} 29... a5 {[%clk 0:00:38]} 30. Rd1 {[%clk 0:00:15.4]}
30... Bxb3 {[%clk 0:00:35.6]} 31. axb3 {[%clk 0:00:15.2]} 31... c5 {[%clk
0:00:36.2]} 0-1

[Event "*** Titled Tuesday Blitz"]
[Site "Chess.com"]
[Date "2021.03.02"]
[Round "2"]
[White "Azerichess"]
[Black "Mikhail_Golubev"]
[Result "1-0"]
[WhiteElo "2966"]
[BlackElo "2585"]
[TimeControl "180+1"]
[EndTime "10:17:19 PST"]
[Termination "Azerichess won on time"]

1. d4 {[%clk 0:03:00.9]} 1... Nf6 {[%clk 0:02:59.9]} 2. c4 {[%clk 0:03:00.4]}
2... g6 {[%clk 0:02:59.7]} 3. Nf3 {[%clk 0:02:57.2]} 3... Bg7 {[%clk 0:02:59.8]}
4. g3 {[%clk 0:02:55.2]} 4... O-O {[%clk 0:02:58.3]} 5. Bg2 {[%clk 0:02:55.6]}
5... d6 {[%clk 0:02:58.1]} 6. O-O {[%clk 0:02:55.5]} 6... Nbd7 {[%clk
0:02:51.6]} 7. Nc3 {[%clk 0:02:52.9]} 7... e5 {[%clk 0:02:51.5]} 8. Qc2 {[%clk
0:02:52.3]} 8... exd4 {[%clk 0:02:50.3]} 9. Nxd4 {[%clk 0:02:53.2]} 9... Nb6
{[%clk 0:02:50.4]} 10. Rd1 {[%clk 0:02:49.6]} 10... Nxc4 {[%clk 0:02:48.7]} 11.
Ncb5 {[%clk 0:02:48.7]} 11... a6 {[%clk 0:02:48.4]} 12. Qxc4 {[%clk 0:02:47.7]}
12... axb5 {[%clk 0:02:48.5]} 13. Nxb5 {[%clk 0:02:48.6]} 13... Ne8 {[%clk
0:02:48.4]} 14. Qc2 {[%clk 0:02:43.1]} 14... Qe7 {[%clk 0:02:41.2]} 15. Bf4
{[%clk 0:02:36.5]} 15... g5 {[%clk 0:02:28.6]} 16. Be3 {[%clk 0:02:22.7]} 16...
c6 {[%clk 0:02:19]} 17. Nc3 {[%clk 0:02:22.7]} 17... f5 {[%clk 0:02:17.1]} 18.
Bd4 {[%clk 0:02:22.3]} 18... Nf6 {[%clk 0:02:12.9]} 19. b4 {[%clk 0:02:19.6]}
19... Be6 {[%clk 0:02:04.9]} 20. a4 {[%clk 0:02:17.7]} 20... Rae8 {[%clk
0:01:32.8]} 21. b5 {[%clk 0:02:00]} 21... d5 {[%clk 0:01:09.5]} 22. a5 {[%clk
0:01:52.3]} 22... Ne4 {[%clk 0:01:06.8]} 23. Nxe4 {[%clk 0:01:37.2]} 23... fxe4
{[%clk 0:01:06]} 24. Bxg7 {[%clk 0:01:08.8]} 24... Qxg7 {[%clk 0:01:04.5]} 25.
a6 {[%clk 0:01:08.6]} 25... bxa6 {[%clk 0:00:57.5]} 26. bxc6 {[%clk 0:01:06.8]}
26... Qa7 {[%clk 0:00:41.5]} 27. e3 {[%clk 0:01:05.5]} 27... Rc8 {[%clk
0:00:40.5]} 28. Bf1 {[%clk 0:01:00]} 28... a5 {[%clk 0:00:32.8]} 29. Rdc1 {[%clk
0:00:53.1]} 29... Rc7 {[%clk 0:00:18.8]} 30. Qc3 {[%clk 0:00:45.4]} 30... Bd7
{[%clk 0:00:10.8]} 31. Qe5 {[%clk 0:00:43.4]} 31... Rxc6 {[%clk 0:00:06.7]} 32.
Qxd5+ {[%clk 0:00:42.6]} 32... Re6 {[%clk 0:00:05.2]} 33. Bh3 {[%clk 0:00:40.9]}
1-0